[Event "*** Titled Tuesday Blitz"]
[Site "Chess.com"]
[Date "2021.02.16"]
[Round "4"]
[White "szachuspl"]
[Black "BikingBrian"]
[Result "1-0"]
[WhiteElo "2466"]
[BlackElo "2319"]
[TimeControl "180+1"]
[EndTime "10:40:08 PST"]
[Termination "szachuspl won by resignation"]

1. d4 {[%clk 0:03:00.9]} 1... Nf6 {[%clk 0:02:58.4]} 2. c4 {[%clk 0:03:00]} 2...
g6 {[%clk 0:02:57.6]} 3. Nc3 {[%clk 0:02:59.6]} 3... Bg7 {[%clk 0:02:58.2]} 4.
e4 {[%clk 0:02:57.4]} 4... d6 {[%clk 0:02:58.5]} 5. Nf3 {[%clk 0:02:56.8]} 5...
O-O {[%clk 0:02:58.8]} 6. Be2 {[%clk 0:02:56.8]} 6... Na6 {[%clk 0:02:59.1]} 7.
Be3 {[%clk 0:02:51.8]} 7... Ng4 {[%clk 0:02:48.5]} 8. Bg5 {[%clk 0:02:51.1]}
8... Qe8 {[%clk 0:02:48.2]} 9. h3 {[%clk 0:02:50.7]} 9... Nf6 {[%clk 0:02:46.8]}
10. Nd2 {[%clk 0:02:49.1]} 10... e5 {[%clk 0:02:45.4]} 11. d5 {[%clk 0:02:48.8]}
11... h6 {[%clk 0:02:43.5]} 12. Be3 {[%clk 0:02:48.1]} 12... Nh7 {[%clk
0:02:32.7]} 13. g4 {[%clk 0:02:42.1]} 13... f5 {[%clk 0:02:32.3]} 14. f3 {[%clk
0:02:42.2]} 14... Bf6 {[%clk 0:02:15.9]} 15. h4 {[%clk 0:02:38.6]} 15... fxg4
{[%clk 0:02:07.8]} 16. fxg4 {[%clk 0:02:36.4]} 16... Qe7 {[%clk 0:02:04.1]} 17.
Bf2 {[%clk 0:02:23.2]} 17... Bd7 {[%clk 0:01:19.2]} 18. a3 {[%clk 0:02:18.8]}
18... c5 {[%clk 0:01:15.7]} 19. Qc2 {[%clk 0:02:16.8]} 19... Nc7 {[%clk
0:01:11.1]} 20. Bg3 {[%clk 0:02:09.2]} 20... a6 {[%clk 0:01:08.6]} 21. O-O-O
{[%clk 0:02:06.9]} 21... b5 {[%clk 0:01:07.1]} 22. Rdf1 {[%clk 0:02:01]} 22...
b4 {[%clk 0:01:02.9]} 23. axb4 {[%clk 0:02:01]} 23... cxb4 {[%clk 0:01:02.7]}
24. Na4 {[%clk 0:02:01.4]} 24... Bxa4 {[%clk 0:00:59.3]} 25. Qxa4 {[%clk
0:02:00.6]} 25... Rfc8 {[%clk 0:00:49.6]} 26. Kb1 {[%clk 0:01:59.8]} 26... a5
{[%clk 0:00:43.8]} 27. g5 {[%clk 0:01:58.6]} 27... hxg5 {[%clk 0:00:42.2]} 28.
h5 {[%clk 0:01:58.9]} 28... gxh5 {[%clk 0:00:29.5]} 29. Bxh5 {[%clk 0:01:58.1]}
29... Ne8 {[%clk 0:00:24.4]} 30. Bg4 {[%clk 0:01:57]} 30... Ng7 {[%clk
0:00:22.7]} 31. Rh6 {[%clk 0:01:49.8]} 31... Rf8 {[%clk 0:00:20.5]} 32. Rfh1
{[%clk 0:01:48.6]} 32... Kf7 {[%clk 0:00:16.5]} 33. Rxh7 {[%clk 0:01:47.8]}
33... Qe8 {[%clk 0:00:13.4]} 34. Bh5+ {[%clk 0:01:46.1]} 1-0

[Event "*** Titled Tuesday Blitz"]
[Site "Chess.com"]
[Date "2021.02.16"]
[Round "4"]
[White "pirulillo"]
[Black "NovikovaGalina"]
[Result "0-1"]
[WhiteElo "2157"]
[BlackElo "2412"]
[TimeControl "180+1"]
[EndTime "10:40:11 PST"]
[Termination "NovikovaGalina won by checkmate"]

1. e4 {[%clk 0:02:59.3]} 1... e6 {[%clk 0:03:00]} 2. d3 {[%clk 0:02:59.2]} 2...
d5 {[%clk 0:03:00.9]} 3. Nd2 {[%clk 0:02:59]} 3... Nf6 {[%clk 0:03:01.2]} 4.
Ngf3 {[%clk 0:02:59]} 4... g6 {[%clk 0:03:01.8]} 5. g3 {[%clk 0:02:58.8]} 5...
Bg7 {[%clk 0:03:02.1]} 6. Bg2 {[%clk 0:02:59.7]} 6... O-O {[%clk 0:03:02.7]} 7.
O-O {[%clk 0:03:00.3]} 7... c5 {[%clk 0:03:03.4]} 8. Re1 {[%clk 0:02:59.9]} 8...
Nc6 {[%clk 0:03:04]} 9. Qe2 {[%clk 0:02:59]} 9... a5 {[%clk 0:03:04.2]} 10. a4
{[%clk 0:02:58.4]} 10... b6 {[%clk 0:03:02.7]} 11. Nf1 {[%clk 0:02:56.4]} 11...
Ba6 {[%clk 0:03:02.6]} 12. e5 {[%clk 0:02:56.1]} 12... Nd7 {[%clk 0:03:02.7]}
13. Bf4 {[%clk 0:02:56.7]} 13... Rc8 {[%clk 0:02:56.6]} 14. h4 {[%clk
0:02:53.5]} 14... Nd4 {[%clk 0:02:55.9]} 15. Nxd4 {[%clk 0:02:52]} 15... cxd4
{[%clk 0:02:56.8]} 16. Nh2 {[%clk 0:02:48.6]} 16... Qc7 {[%clk 0:02:49.2]} 17.
Rac1 {[%clk 0:02:46.5]} 17... Qc6 {[%clk 0:02:48.4]} 18. b3 {[%clk 0:02:45.5]}
18... b5 {[%clk 0:02:47.1]} 19. axb5 {[%clk 0:02:44.7]} 19... Bxb5 {[%clk
0:02:48]} 20. Nf3 {[%clk 0:02:45.6]} 20... Qb6 {[%clk 0:02:42.5]} 21. Ra1 {[%clk
0:02:43.2]} 21... Rc7 {[%clk 0:02:36]} 22. Rec1 {[%clk 0:02:40.7]} 22... Ra8
{[%clk 0:02:34.1]} 23. h5 {[%clk 0:02:38.1]} 23... a4 {[%clk 0:02:34]} 24. h6
{[%clk 0:02:30.2]} 24... Bf8 {[%clk 0:02:32.7]} 25. Nh2 {[%clk 0:02:29.9]} 25...
Rca7 {[%clk 0:02:27.5]} 26. bxa4 {[%clk 0:02:27.9]} 26... Rxa4 {[%clk
0:02:26.7]} 27. Rxa4 {[%clk 0:02:27.4]} 27... Bxa4 {[%clk 0:02:27.6]} 28. Ng4
{[%clk 0:02:27.9]} 28... Rc8 {[%clk 0:02:27.2]} 29. Bf1 {[%clk 0:02:19.7]} 29...
Qb2 {[%clk 0:02:23.5]} 30. Bg5 {[%clk 0:02:12.9]} 30... Rxc2 {[%clk 0:02:20.7]}
31. Rxc2 {[%clk 0:02:12.8]} 31... Qxc2 {[%clk 0:02:21.6]} 32. Qf3 {[%clk
0:02:13.7]} 32... Qd1 {[%clk 0:02:01.3]} 33. Nf6+ {[%clk 0:02:12.7]} 33... Nxf6
{[%clk 0:01:59.2]} 34. Qxf6 {[%clk 0:02:12.2]} 34... Bc2 {[%clk 0:01:50.4]} 35.
Qd8 {[%clk 0:02:03]} 35... Bxd3 {[%clk 0:01:49.6]} 36. Be7 {[%clk 0:01:08.5]}
36... Qxf1+ {[%clk 0:01:49]} 37. Kh2 {[%clk 0:01:07.9]} 37... Qxf2+ {[%clk
0:01:49.5]} 38. Kh3 {[%clk 0:01:05.4]} 38... Bf1+ {[%clk 0:01:42.9]} 39. Kh4
{[%clk 0:01:01.2]} 39... Qh2+ {[%clk 0:01:42.7]} 40. Kg4 {[%clk 0:01:00.7]}
40... Qh5+ {[%clk 0:01:37.1]} 41. Kf4 {[%clk 0:00:59.8]} 41... Qf5# {[%clk
0:01:37.4]} 0-1

[Event "*** Titled Tuesday Blitz"]
[Site "Chess.com"]
[Date "2021.02.16"]
[Round "4"]
[White "Eltaj_Safarli"]
[Black "Nikolakis2014"]
[Result "1-0"]
[WhiteElo "2923"]
[BlackElo "2638"]
[TimeControl "180+1"]
[EndTime "10:40:13 PST"]
[Termination "Eltaj_Safarli won by resignation"]

1. e4 {[%clk 0:03:00.9]} 1... c6 {[%clk 0:02:59.9]} 2. d4 {[%clk 0:03:00.5]}
2... d5 {[%clk 0:03:00.1]} 3. exd5 {[%clk 0:03:01.4]} 3... cxd5 {[%clk
0:03:00.3]} 4. c4 {[%clk 0:03:02.3]} 4... Nf6 {[%clk 0:03:00.1]} 5. Nc3 {[%clk
0:03:03.2]} 5... Nc6 {[%clk 0:02:59.5]} 6. Bg5 {[%clk 0:03:03.1]} 6... Be6
{[%clk 0:02:49]} 7. Be2 {[%clk 0:02:58.4]} 7... Qa5 {[%clk 0:02:37.7]} 8. Nf3
{[%clk 0:02:58.6]} 8... Ne4 {[%clk 0:02:34]} 9. O-O {[%clk 0:02:58.5]} 9... Nxc3
{[%clk 0:02:16.5]} 10. bxc3 {[%clk 0:02:59.4]} 10... dxc4 {[%clk 0:02:16.8]} 11.
Rb1 {[%clk 0:02:36.4]} 11... O-O-O {[%clk 0:02:13.9]} 12. a4 {[%clk 0:02:29]}
12... Qxc3 {[%clk 0:02:03.6]} 13. Bd2 {[%clk 0:02:27.4]} 13... Qa3 {[%clk
0:02:01.6]} 14. Qc2 {[%clk 0:02:27.1]} 14... Bd5 {[%clk 0:01:49.7]} 15. Bxc4
{[%clk 0:01:50.1]} 15... e6 {[%clk 0:00:37.2]} 16. Bxd5 {[%clk 0:01:49.7]} 16...
Rxd5 {[%clk 0:00:34.7]} 17. Ne5 {[%clk 0:01:50.2]} 17... Qd6 {[%clk 0:00:18.8]}
18. Nxf7 {[%clk 0:01:37]} 18... Qc7 {[%clk 0:00:18.9]} 19. Nxh8 {[%clk
0:01:36.4]} 19... Bd6 {[%clk 0:00:19.1]} 20. Qxh7 {[%clk 0:01:35.6]} 20... Kb8
{[%clk 0:00:16.3]} 21. Ng6 {[%clk 0:01:31.9]} 21... a6 {[%clk 0:00:16.5]} 22.
Be3 {[%clk 0:01:25.6]} 22... Qf7 {[%clk 0:00:12.8]} 23. Ne5 {[%clk 0:01:22.8]}
1-0

[Event "*** Titled Tuesday Blitz"]
[Site "Chess.com"]
[Date "2021.02.16"]
[Round "4"]
[White "Aslanov_Umid"]
[Black "johnathan113"]
[Result "0-1"]
[WhiteElo "2342"]
[BlackElo "2610"]
[TimeControl "180+1"]
[EndTime "10:40:13 PST"]
[Termination "johnathan113 won by resignation"]

1. e4 {[%clk 0:03:00.9]} 1... c5 {[%clk 0:03:00.4]} 2. Nf3 {[%clk 0:03:01.1]}
2... d6 {[%clk 0:03:00.9]} 3. d4 {[%clk 0:03:01.8]} 3... cxd4 {[%clk 0:03:01.8]}
4. Nxd4 {[%clk 0:03:02.7]} 4... Nf6 {[%clk 0:03:02.2]} 5. Nc3 {[%clk 0:03:03.3]}
5... Nc6 {[%clk 0:03:03.1]} 6. Bc4 {[%clk 0:03:02.1]} 6... e6 {[%clk 0:03:03.4]}
7. Bb3 {[%clk 0:03:01.7]} 7... Be7 {[%clk 0:03:02.5]} 8. Be3 {[%clk 0:02:59.4]}
8... Bd7 {[%clk 0:03:01.2]} 9. f3 {[%clk 0:02:59.1]} 9... Na5 {[%clk 0:02:53.4]}
10. Qe2 {[%clk 0:02:50.1]} 10... O-O {[%clk 0:02:48.8]} 11. g4 {[%clk
0:02:45.7]} 11... Nxb3 {[%clk 0:02:40.9]} 12. Nxb3 {[%clk 0:02:37.8]} 12... a5
{[%clk 0:02:38.8]} 13. h4 {[%clk 0:02:34.3]} 13... a4 {[%clk 0:02:38.2]} 14. Nd4
{[%clk 0:02:34.3]} 14... a3 {[%clk 0:02:36.3]} 15. b3 {[%clk 0:02:24.4]} 15...
Qc7 {[%clk 0:02:35.5]} 16. Ncb5 {[%clk 0:01:56.7]} 16... Qa5+ {[%clk 0:02:34]}
17. Bd2 {[%clk 0:01:56.3]} 17... Qb6 {[%clk 0:02:34]} 18. h5 {[%clk 0:01:49]}
18... Rfc8 {[%clk 0:02:18.5]} 19. g5 {[%clk 0:01:46.1]} 19... Ne8 {[%clk
0:02:16.9]} 20. g6 {[%clk 0:01:45.2]} 20... Bf6 {[%clk 0:02:09.7]} 21. c3 {[%clk
0:01:36.5]} 21... e5 {[%clk 0:02:03.2]} 22. gxf7+ {[%clk 0:01:28.2]} 22... Kxf7
{[%clk 0:02:04.1]} 23. Be3 {[%clk 0:01:21.1]} 23... exd4 {[%clk 0:02:02.8]} 24.
Nxd4 {[%clk 0:01:20.7]} 24... Rxc3 {[%clk 0:02:00.2]} 25. Rd1 {[%clk 0:01:13.3]}
25... Rac8 {[%clk 0:01:53.6]} 26. Nf5 {[%clk 0:00:52.1]} 26... Rxe3 {[%clk
0:01:42]} 27. Nxe3 {[%clk 0:00:44.2]} 27... Bb5 {[%clk 0:01:41.9]} 28. Nc4
{[%clk 0:00:32.9]} 28... Bxc4 {[%clk 0:01:41.3]} 29. bxc4 {[%clk 0:00:33.8]}
29... Qb4+ {[%clk 0:01:36.2]} 30. Kf1 {[%clk 0:00:32.5]} 30... Rxc4 {[%clk
0:01:35.3]} 31. Qd3 {[%clk 0:00:26.8]} 31... Rd4 {[%clk 0:01:33.3]} 0-1

[Event "*** Titled Tuesday Blitz"]
[Site "Chess.com"]
[Date "2021.02.16"]
[Round "4"]
[White "Walter_White_Poland"]
[Black "night_player"]
[Result "1-0"]
[WhiteElo "2354"]
[BlackElo "2150"]
[TimeControl "180+1"]
[EndTime "10:40:15 PST"]
[Termination "Walter_White_Poland won by resignation"]

1. e4 {[%clk 0:03:00.9]} 1... c5 {[%clk 0:02:57.6]} 2. Nf3 {[%clk 0:03:00.8]}
2... Nc6 {[%clk 0:02:57.6]} 3. d4 {[%clk 0:03:01]} 3... cxd4 {[%clk 0:02:58.5]}
4. Nxd4 {[%clk 0:03:01.6]} 4... e5 {[%clk 0:02:58.8]} 5. Nb5 {[%clk 0:03:00.3]}
5... d6 {[%clk 0:02:59.3]} 6. c4 {[%clk 0:03:00.1]} 6... Be7 {[%clk 0:02:58.8]}
7. Be2 {[%clk 0:02:59.5]} 7... Nf6 {[%clk 0:02:55.9]} 8. N1c3 {[%clk 0:02:58.8]}
8... a6 {[%clk 0:02:56.1]} 9. Na3 {[%clk 0:02:58.8]} 9... O-O {[%clk 0:02:56.5]}
10. O-O {[%clk 0:02:58.6]} 10... Be6 {[%clk 0:02:56.9]} 11. Be3 {[%clk
0:02:57.3]} 11... Nb8 {[%clk 0:02:28.8]} 12. f3 {[%clk 0:02:53.7]} 12... Nbd7
{[%clk 0:02:28.9]} 13. Nd5 {[%clk 0:02:49.9]} 13... Bxd5 {[%clk 0:02:28.7]} 14.
cxd5 {[%clk 0:02:49.6]} 14... Ne8 {[%clk 0:02:27.5]} 15. Nc4 {[%clk 0:02:45.8]}
15... Bg5 {[%clk 0:02:25]} 16. Bxg5 {[%clk 0:02:28.4]} 16... Qxg5 {[%clk
0:02:23.3]} 17. Qc1 {[%clk 0:02:27.6]} 17... Qxc1 {[%clk 0:02:20.3]} 18. Rfxc1
{[%clk 0:02:26.4]} 18... Rc8 {[%clk 0:02:15.9]} 19. a4 {[%clk 0:02:22.5]} 19...
f5 {[%clk 0:02:11.7]} 20. b4 {[%clk 0:01:57]} 20... fxe4 {[%clk 0:01:46.7]} 21.
fxe4 {[%clk 0:01:56.4]} 21... Rf4 {[%clk 0:01:47]} 22. Nd2 {[%clk 0:01:51.5]}
22... Rxc1+ {[%clk 0:01:40]} 23. Rxc1 {[%clk 0:01:52.4]} 23... Ndf6 {[%clk
0:01:28.9]} 24. g3 {[%clk 0:01:51.3]} 24... Rxe4 {[%clk 0:01:22.5]} 25. Nxe4
{[%clk 0:01:50.9]} 25... Nxe4 {[%clk 0:01:23.4]} 26. Rc8 {[%clk 0:01:43.1]}
26... Kf7 {[%clk 0:01:21.9]} 27. Rb8 {[%clk 0:01:40.7]} 27... b5 {[%clk
0:01:15]} 28. axb5 {[%clk 0:01:36.7]} 28... axb5 {[%clk 0:01:14.9]} 29. Bxb5
{[%clk 0:01:36.6]} 29... N8f6 {[%clk 0:01:12.8]} 30. Bc6 {[%clk 0:01:34.9]}
30... Nc3 {[%clk 0:01:09.8]} 31. b5 {[%clk 0:01:30.4]} 31... Nfxd5 {[%clk
0:01:08.5]} 32. Bxd5+ {[%clk 0:01:29.2]} 32... Nxd5 {[%clk 0:01:08.3]} 33. b6
{[%clk 0:01:23.3]} 33... Ke7 {[%clk 0:00:42.1]} 34. b7 {[%clk 0:01:22.5]} 1-0

[Event "*** Titled Tuesday Blitz"]
[Site "Chess.com"]
[Date "2021.02.16"]
[Round "4"]
[White "pavelalexandru07"]
[Black "rynos0411"]
[Result "0-1"]
[WhiteElo "2321"]
[BlackElo "2466"]
[TimeControl "180+1"]
[EndTime "10:40:16 PST"]
[Termination "rynos0411 won by resignation"]

1. e4 {[%clk 0:02:35.6]} 1... c6 {[%clk 0:02:58]} 2. d4 {[%clk 0:02:33.6]} 2...
d5 {[%clk 0:02:57.4]} 3. Nc3 {[%clk 0:02:28.9]} 3... dxe4 {[%clk 0:02:56.7]} 4.
Nxe4 {[%clk 0:02:26.9]} 4... Nf6 {[%clk 0:02:56.7]} 5. Nc3 {[%clk 0:02:16.6]}
5... Bf5 {[%clk 0:02:52.6]} 6. Nf3 {[%clk 0:02:02.5]} 6... e6 {[%clk 0:02:51.7]}
7. Bd3 {[%clk 0:01:59.1]} 7... Bxd3 {[%clk 0:02:48.4]} 8. Qxd3 {[%clk 0:02:00]}
8... Nbd7 {[%clk 0:02:48.2]} 9. Be3 {[%clk 0:01:57.9]} 9... Be7 {[%clk 0:02:48]}
10. O-O-O {[%clk 0:01:43.4]} 10... b5 {[%clk 0:02:45.4]} 11. g4 {[%clk
0:01:29.1]} 11... Nxg4 {[%clk 0:02:35.8]} 12. Rhg1 {[%clk 0:01:23.8]} 12... Nxe3
{[%clk 0:02:35.5]} 13. fxe3 {[%clk 0:01:05.3]} 13... g6 {[%clk 0:02:29.1]} 14.
e4 {[%clk 0:00:57]} 14... b4 {[%clk 0:02:27]} 15. Ne2 {[%clk 0:00:56.3]} 15...
Qc7 {[%clk 0:02:24.5]} 16. Kb1 {[%clk 0:00:26]} 16... O-O {[%clk 0:02:23.1]} 17.
h4 {[%clk 0:00:24.1]} 17... c5 {[%clk 0:02:14]} 18. d5 {[%clk 0:00:21.9]} 18...
exd5 {[%clk 0:02:13.5]} 19. exd5 {[%clk 0:00:20.7]} 19... Bf6 {[%clk 0:02:08.4]}
20. Rdf1 {[%clk 0:00:18.7]} 20... Bg7 {[%clk 0:02:05.4]} 21. h5 {[%clk
0:00:09.5]} 21... Ne5 {[%clk 0:02:05.5]} 22. Nxe5 {[%clk 0:00:07.3]} 22... Qxe5
{[%clk 0:02:06.4]} 23. c3 {[%clk 0:00:06.4]} 23... Rad8 {[%clk 0:02:01.1]} 24.
hxg6 {[%clk 0:00:03.4]} 24... hxg6 {[%clk 0:02:00.2]} 25. Rd1 {[%clk 0:00:02]}
25... Rd6 {[%clk 0:01:50.1]} 26. Rge1 {[%clk 0:00:01.2]} 26... Rfd8 {[%clk
0:01:49.8]} 27. Qc2 {[%clk 0:00:01.3]} 27... Rxd5 {[%clk 0:01:49]} 28. Nd4
{[%clk 0:00:01.7]} 28... Qd6 {[%clk 0:01:44.6]} 29. Nb5 {[%clk 0:00:01.9]} 29...
Rxd1+ {[%clk 0:01:44.5]} 30. Rxd1 {[%clk 0:00:02.2]} 30... Qxd1+ {[%clk
0:01:45.4]} 31. Qxd1 {[%clk 0:00:02.9]} 31... Rxd1+ {[%clk 0:01:45.8]} 32. Kc2
{[%clk 0:00:03.8]} 0-1

[Event "*** Titled Tuesday Blitz"]
[Site "Chess.com"]
[Date "2021.02.16"]
[Round "4"]
[White "lamomiablanca"]
[Black "BursaBBSatranc"]
[Result "1-0"]
[WhiteElo "2313"]
[BlackElo "2587"]
[TimeControl "180+1"]
[EndTime "10:40:28 PST"]
[Termination "lamomiablanca won by resignation"]

1. e4 {[%clk 0:03:00.9]} 1... e5 {[%clk 0:02:59.8]} 2. Nf3 {[%clk 0:03:00.2]}
2... Nf6 {[%clk 0:03:00.1]} 3. Nc3 {[%clk 0:03:00.1]} 3... Nc6 {[%clk 0:03:00]}
4. d4 {[%clk 0:02:59.7]} 4... exd4 {[%clk 0:02:58.1]} 5. Nxd4 {[%clk 0:02:59.6]}
5... Nxe4 {[%clk 0:02:57.7]} 6. Nxe4 {[%clk 0:02:56.8]} 6... Qe7 {[%clk
0:02:57.1]} 7. f3 {[%clk 0:02:57]} 7... d5 {[%clk 0:02:55.8]} 8. Bb5 {[%clk
0:02:57]} 8... Bd7 {[%clk 0:02:56]} 9. Bxc6 {[%clk 0:02:57]} 9... bxc6 {[%clk
0:02:55]} 10. O-O {[%clk 0:02:57.2]} 10... dxe4 {[%clk 0:02:55.2]} 11. Re1
{[%clk 0:02:56.9]} 11... f5 {[%clk 0:02:44.1]} 12. fxe4 {[%clk 0:02:49.8]} 12...
fxe4 {[%clk 0:02:43.8]} 13. Be3 {[%clk 0:02:39.3]} 13... g6 {[%clk 0:02:33.5]}
14. Nb3 {[%clk 0:02:38.8]} 14... Bg7 {[%clk 0:02:24]} 15. c3 {[%clk 0:02:22.5]}
15... O-O {[%clk 0:02:22.2]} 16. Bc5 {[%clk 0:02:20.3]} 16... Qe6 {[%clk
0:02:09.4]} 17. Bxf8 {[%clk 0:02:16.9]} 17... Rxf8 {[%clk 0:02:10.3]} 18. Nc5
{[%clk 0:02:13.6]} 18... Qf7 {[%clk 0:01:04.5]} 19. Nxd7 {[%clk 0:02:00.6]}
19... Rd8 {[%clk 0:00:48.6]} 20. Ne5 {[%clk 0:01:22.7]} 20... Rxd1 {[%clk
0:00:14.9]} 21. Nxf7 {[%clk 0:01:21.4]} 21... Rd5 {[%clk 0:00:08.3]} 22. Rxe4
{[%clk 0:01:16.6]} 22... Kxf7 {[%clk 0:00:08.7]} 23. Rf1+ {[%clk 0:01:15.7]} 1-0

[Event "*** Titled Tuesday Blitz"]
[Site "Chess.com"]
[Date "2021.02.16"]
[Round "4"]
[White "Kaslask"]
[Black "Ranindu2003"]
[Result "0-1"]
[WhiteElo "2246"]
[BlackElo "2570"]
[TimeControl "180+1"]
[EndTime "10:40:30 PST"]
[Termination "Ranindu2003 won by resignation"]

1. d4 {[%clk 0:03:00.9]} 1... d5 {[%clk 0:02:58.6]} 2. c4 {[%clk 0:03:00.4]}
2... e6 {[%clk 0:02:58.9]} 3. Nc3 {[%clk 0:03:00.4]} 3... a6 {[%clk 0:02:59.4]}
4. cxd5 {[%clk 0:02:58.7]} 4... exd5 {[%clk 0:03:00.3]} 5. Bf4 {[%clk
0:02:58.4]} 5... Nf6 {[%clk 0:03:00.1]} 6. e3 {[%clk 0:02:57.9]} 6... Bd6 {[%clk
0:03:00.7]} 7. Bg3 {[%clk 0:02:57.3]} 7... O-O {[%clk 0:03:00.1]} 8. Bd3 {[%clk
0:02:56.4]} 8... Re8 {[%clk 0:02:58.6]} 9. Nf3 {[%clk 0:02:55.9]} 9... c6 {[%clk
0:02:46.4]} 10. Qc2 {[%clk 0:02:55]} 10... Bg4 {[%clk 0:02:40.3]} 11. Ne5 {[%clk
0:02:53.2]} 11... Bh5 {[%clk 0:02:40.6]} 12. f4 {[%clk 0:02:50.6]} 12... c5
{[%clk 0:02:39.1]} 13. O-O {[%clk 0:02:44.2]} 13... Nc6 {[%clk 0:02:35.7]} 14.
Rae1 {[%clk 0:02:22.6]} 14... cxd4 {[%clk 0:02:28.2]} 15. Nxc6 {[%clk 0:02:21]}
15... bxc6 {[%clk 0:02:29.1]} 16. exd4 {[%clk 0:02:20.4]} 16... Qb6 {[%clk
0:02:30]} 17. Bf2 {[%clk 0:02:02.2]} 17... Bxf4 {[%clk 0:02:26.7]} 18. Na4
{[%clk 0:02:01.1]} 18... Qc7 {[%clk 0:02:25.6]} 19. g3 {[%clk 0:01:52]} 19...
Bd6 {[%clk 0:02:23.7]} 20. Nc5 {[%clk 0:01:49.1]} 20... Ng4 {[%clk 0:02:18.8]}
21. Rxe8+ {[%clk 0:01:39.3]} 21... Rxe8 {[%clk 0:02:19.7]} 22. Nxa6 {[%clk
0:01:38.1]} 22... Qb6 {[%clk 0:02:14.5]} 23. Nc5 {[%clk 0:01:33.3]} 23... h6
{[%clk 0:01:43.3]} 24. a3 {[%clk 0:01:32]} 24... Qc7 {[%clk 0:01:30.3]} 25. Bf5
{[%clk 0:01:26.5]} 25... Ne3 {[%clk 0:01:28.1]} 26. Bxe3 {[%clk 0:01:23.3]}
26... Rxe3 {[%clk 0:01:16]} 27. Qf2 {[%clk 0:01:20.7]} 27... Qe7 {[%clk
0:01:09.4]} 28. Bh3 {[%clk 0:00:50]} 28... Re2 {[%clk 0:00:58.9]} 29. Qf5 {[%clk
0:00:47.1]} 29... Qe3+ {[%clk 0:00:59.3]} 30. Kh1 {[%clk 0:00:46.6]} 30... Rxh2+
{[%clk 0:00:58.6]} 0-1

[Event "*** Titled Tuesday Blitz"]
[Site "Chess.com"]
[Date "2021.02.16"]
[Round "4"]
[White "ybruned"]
[Black "BairaKovanova"]
[Result "0-1"]
[WhiteElo "2310"]
[BlackElo "2463"]
[TimeControl "180+1"]
[EndTime "10:40:32 PST"]
[Termination "BairaKovanova won by resignation"]

1. b3 {[%clk 0:03:00.9]} 1... e5 {[%clk 0:02:58.6]} 2. Bb2 {[%clk 0:02:59.8]}
2... d6 {[%clk 0:02:58.6]} 3. e3 {[%clk 0:02:58.7]} 3... Nd7 {[%clk 0:02:58.8]}
4. d4 {[%clk 0:02:58.2]} 4... Ngf6 {[%clk 0:02:58.6]} 5. dxe5 {[%clk 0:02:57.3]}
5... dxe5 {[%clk 0:02:58.7]} 6. Nc3 {[%clk 0:02:55.3]} 6... Bd6 {[%clk
0:02:56.7]} 7. Qe2 {[%clk 0:02:39.4]} 7... O-O {[%clk 0:02:54.9]} 8. O-O-O
{[%clk 0:02:39.9]} 8... Qe7 {[%clk 0:02:53.7]} 9. g4 {[%clk 0:02:38.8]} 9... Ba3
{[%clk 0:02:48.7]} 10. g5 {[%clk 0:02:37.5]} 10... Bxb2+ {[%clk 0:02:48.7]} 11.
Kxb2 {[%clk 0:02:36.6]} 11... Ne8 {[%clk 0:02:49.3]} 12. Nd5 {[%clk 0:02:16.1]}
12... Qc5 {[%clk 0:02:48.1]} 13. Qc4 {[%clk 0:02:12.5]} 13... c6 {[%clk
0:02:41.4]} 14. Qxc5 {[%clk 0:02:08]} 14... Nxc5 {[%clk 0:02:41.6]} 15. Ne7+
{[%clk 0:02:08.6]} 15... Kh8 {[%clk 0:02:42.1]} 16. Nxc8 {[%clk 0:02:00.4]}
16... Rxc8 {[%clk 0:02:41.9]} 17. Bg2 {[%clk 0:01:48.9]} 17... Nc7 {[%clk
0:02:40.9]} 18. Ne2 {[%clk 0:01:44.2]} 18... N7e6 {[%clk 0:02:39.2]} 19. h4
{[%clk 0:01:39.4]} 19... Rcd8 {[%clk 0:02:37.2]} 20. Nc3 {[%clk 0:01:19.4]}
20... a5 {[%clk 0:02:11.2]} 21. a3 {[%clk 0:01:13.8]} 21... f6 {[%clk 0:02:10]}
22. Rxd8 {[%clk 0:00:51.8]} 22... Rxd8 {[%clk 0:02:09.2]} 23. gxf6 {[%clk
0:00:51.2]} 23... gxf6 {[%clk 0:02:09.5]} 24. Rd1 {[%clk 0:00:46.9]} 24... Rxd1
{[%clk 0:01:57.8]} 25. Nxd1 {[%clk 0:00:47.3]} 25... Kg7 {[%clk 0:01:58.4]} 26.
b4 {[%clk 0:00:47.8]} 26... axb4 {[%clk 0:01:57.7]} 27. axb4 {[%clk 0:00:48.2]}
27... Na6 {[%clk 0:01:53.6]} 28. Kb3 {[%clk 0:00:48.3]} 28... Nac7 {[%clk
0:01:53]} 29. c4 {[%clk 0:00:45.3]} 29... Kh6 {[%clk 0:01:53]} 30. Bf3 {[%clk
0:00:45.3]} 30... f5 {[%clk 0:01:52.9]} 31. Nc3 {[%clk 0:00:33.2]} 31... e4
{[%clk 0:01:52.4]} 32. Be2 {[%clk 0:00:33.5]} 32... Ne8 {[%clk 0:01:49.2]} 33.
c5 {[%clk 0:00:28]} 33... Nf6 {[%clk 0:01:48.5]} 34. Kc4 {[%clk 0:00:23.6]}
34... f4 {[%clk 0:01:48.2]} 35. exf4 {[%clk 0:00:13.4]} 35... Nxf4 {[%clk
0:01:48.4]} 36. Bd1 {[%clk 0:00:12.5]} 36... Nd3 {[%clk 0:01:43.1]} 37. Nxe4
{[%clk 0:00:11.5]} 37... Nxe4 {[%clk 0:01:41]} 38. Kxd3 {[%clk 0:00:11.4]} 38...
Nxf2+ {[%clk 0:01:41.6]} 0-1